Cogmind - Beta 13 @@@ ROGUE MODE // 2024.04.16 @ 18:02:57 Player: ChromeKnight Result: Destroyed by D-53 Grenadier with Mini Grenade Launcher Performance ------------- Evolutions (0) 0 Regions Visited (2) 400 Robots Destroyed (17) 85 Value Destroyed (301) 301 Prototype IDs (0) 0 Alien Tech Used (0) 0 Bonus (7) 7 TOTAL SCORE: 793 Bonus ------- Follower Combat Kills 7 Cogmind --------- Core Integrity 0/250 Matter 294/300 Energy 98/100 System Corruption 0% Temperature Cool (0) Movement Walking (260) Ox2 Location -10/Mines Parts ------- > --- POWER (1) -------- (None) > --- PROPULSION (2) --- Aluminum Leg > --- UTILITY (2) ------ Improved Heat Sink Large Storage Unit > --- WEAPON (2) ------- Light Assault Rifle Light Assault Rifle > --- INVENTORY (15) --- Improved Heat Sink Structural Scanner Visual Processing Unit Propulsion Shielding Light Armor Plating Light Armor Plating Light Armor Plating Light Assault Rifle Light Assault Rifle Light Assault Rifle Grenade Launcher Grenade Launcher Grenade Launcher Grenade Launcher Peak State ------------ > --- POWER ------------ Light Nuclear Core > --- PROPULSION ------- Aluminum Leg > --- UTILITY ---------- Improved Heat Sink Small Storage Unit > --- WEAPON ----------- Small Laser Particle Gun > --- INVENTORY -------- Improved Heat Sink Structural Scanner Visual Processing Unit Propulsion Shielding Light Armor Plating Small Laser Small Laser Small Laser [Rating: 12] Favorites ----------- Power Light Nuclear Core Engine Ion Engine Power Core Light Nuclear Core Propulsion Aluminum Leg Treads Light Treads Leg Aluminum Leg Utility Improved Heat Sink Device Improved Heat Sink Storage Large Storage Unit Weapon Light Assault Rifle Energy Gun Small Laser Ballistic Gun Light Assault Rifle Build | -11 -10 -10 ------- Run | Yrd Mat Min Slots Evolved . | . . . Power . | . . . Propulsion . | . . . Utility . | . . . Weapon . | . . . Parts Attached 18 | 6 12 . Power 2 | 1 1 . Engine 1 | 1 . . Core 1 | . 1 . Reactor . | . . . Propulsion 5 | 2 3 . Treads 3 | 2 1 . Leg 2 | . 2 . Wheel . | . . . Hover . | . . . Flight . | . . . Utility 5 | 1 4 . Device 2 | . 2 . Storage 3 | 1 2 . Processor . | . . . Hackware . | . . . Protection . | . . . Artifact . | . . . Weapon 6 | 2 4 . Energy Gun 4 | 2 2 . Energy Cannon . | . . . Ballistic Gun 2 | . 2 . Ballistic Cannon . | . . . Launcher . | . . . Special Weapon . | . . . Impact Weapon . | . . . Slashing Weapon . | . . . Piercing Weapon . | . . . Special Melee Weapon . | . . . Unidentified Prototypes . | . . . Parts Lost 7 | . 5 2 Power 2 | . 1 1 Propulsion 3 | . 2 1 Utility . | . . . Weapon 2 | . 2 . Highest Loss Streak 5 | . 5 2 To Critical Strikes . | . . . Average Slot Usage (%) 93 | . 91 99 Engine 2 | . 4 . Core 10 | . 9 13 Treads 6 | . 8 . Leg 17 | . 13 27 Device 13 | . 13 14 Storage 14 | . 14 14 Energy Gun 8 | . 12 . Ballistic Gun 19 | . 15 28 Naked Turns . | . . . Heaviest Build 28 | 12 28 28 Greatest Support 40 | 40 40 20 Greatest Overweight (x) 3 | . 3 1 Average Overweight (x) . | . . 1 Largest Inventory Capacity 15 | 8 15 15 Average Capacity 12 | 7 11 15 Most Carried 14 | . 14 14 Average Carried 9 | . 8 14 Final Capacity 15 | 8 15 15 Final Carried 14 | . 14 14 Class Distribution -------------------- 52% | Scavenger-Mutant 47% | Mutant Dominant Class ---------------- Mutant | -10/Materials Scavenger-Mutant | -10/Mines Resources | -11 -10 -10 ----------- Run | Yrd Mat Min Matter Collected 418 | 240 172 6 Remotely . | . . . Salvage Created 624 | 82 511 31 Parts 39 | 2 33 4 Haulers Intercepted 2 | . 2 . Recyclers Shooed 4 | . 4 . Parts Field Recycled . | . . . Retrieved Matter . | . . . Parts Self-Destructed . | . . . Prevented . | . . . Kills | -11 -10 -10 ------- Run | Yrd Mat Min Combat Hostiles Destroyed 8 | . 6 2 Guns 8 | . 6 2 Classes Destroyed 6 | 1 5 . Builder 1 | . 1 . Hauler 2 | . 2 . Recycler 3 | 1 2 . Watcher 3 | . 3 . Swarmer 3 | . 1 2 Grunt 5 | . 5 . Best Kill Streak 4 | 1 4 2 Combat Bots Only 4 | . 4 2 Max Kills in Single Turn 1 | 1 1 1 Gunslinging . | . . . Exploded . | . . . Melee . | . . . Uniques/NPCs Destroyed . | . . . Combat | -11 -10 -10 -------- Run | Yrd Mat Min Hostile Shots Fired 81 | . 72 9 Missed 14 | . 9 5 Damage Taken 1096 | . 790 306 Core 261 | . 127 134 Absorbed by Shields . | . . . Core Remaining (%) 100 | 100 . . Volleys Fired 75 | 2 66 7 Largest 2 | 2 2 2 Hottest 105 | 80 105 40 Shots Fired 140 | 4 122 14 Gun 140 | 4 122 14 Cannon . | . . . Launcher . | . . . Special . | . . . Kinetic 56 | . 42 14 Thermal 84 | 4 80 . Explosive . | . . . Electromagnetic . | . . . Robot Hit Streak 10 | 4 10 3 Robot Miss Streak 4 | . 4 2 Penetration Max . | . . . Secondary Targets 1 | . 1 . Max Gunslinging Chain 1 | . 1 . Shots Hit Robots 83 | 4 72 7 Core Hits 38 | 2 33 3 Critical Kills . | . . . Critical Parts Destroyed . | . . . Critical Strikes . | . . . Melee Attacks . | . . . Impact . | . . . Slashing . | . . . Piercing . | . . . Sneak Attacks . | . . . Combat Hostiles . | . . . Follow-up Attacks . | . . . Damage Inflicted 861 | 46 755 60 Guns 861 | 46 755 60 Cannons . | . . . Explosions . | . . . Melee . | . . . Ramming . | . . . Kinetic 242 | . 182 60 Thermal 619 | 46 573 . Explosive . | . . . Electromagnetic . | . . . Impact . | . . . Slashing . | . . . Piercing . | . . . Highest Corruption . | . . . Average Corruption . | . . . Corruption Purged . | . . . Corruption Blocked . | . . . Overload Shots . | . . . Overflow Damage . | . . . Projectiles . | . . . Explosions . | . . . Melee . | . . . Knockbacks . | . . . Impact . | . . . Kinetic . | . . . Secondary . | . . . Self-Inflicted Damage . | . . . Shots . | . . . Rammed . | . . . Targets Rammed . | . . . Kicked . | . . . Crushed . | . . . Highest Temperature 328 | 36 328 . Average Temperature 106 | 20 110 . Received Heat Transfer 387 | . 387 . Siege Activations . | . . . Robots Corrupted . | . . . Combat Hostiles . | . . . Parts Fried . | . . . Impact Corruptions . | . . . Robots Melted . | . . . Combat Hostiles . | . . . Parts Melted 5 | . 4 1 Heat Transferred 1411 | 100 1311 . Parts Sabotaged . | . . . Parts Stolen . | . . . Parts Stripped . | . . . Power Chain Reactions . | . . . Alert | -11 -10 -10 ------- Run | Yrd Mat Min Peak Influence 105 | 5 105 52 Initial 3 | . 3 . Average 28 | 1 33 19 Maximum Alert Level . | . . . Low Security (%) 100 | 100 100 100 Level 1 . | . . . Level 2 . | . . . Level 3 . | . . . Level 4 . | . . . Level 5 . | . . . High Security . | . . . Max Security . | . . . Squads Dispatched . | . . . Investigation . | . . . Extermination . | . . . Reinforcement . | . . . Assault . | . . . Garrison . | . . . Intercept . | . . . Searches Triggered . | . . . Construction Impeded . | . . . Haulers Reinforced . | . . . Active Scanning Responses . | . . . Cargo Convoy Interrupts . | . . . Stealth | -11 -10 -10 --------- Run | Yrd Mat Min Distress Signals 1 | . 1 . Communications Jammed . | . . . Distress Signals . | . . . Times Spotted 22 | . 15 7 Peak Tracking Total 5 | . 5 5 Tactical Retreats . | . . . Traps | -11 -10 -10 ------- Run | Yrd Mat Min Traps Triggered . | . . . Indirectly . | . . . Trap Hack Attempts . | . . . Triggered . | . . . Disarmed . | . . . Reprogrammed . | . . . Reused . | . . . Traps Extracted . | . . . Installed . | . . . Triggered . | . . . Machines | -11 -10 -10 ---------- Run | Yrd Mat Min Machines Disabled . | . . . Max in Single Turn . | . . . Machines Repaired . | . . . Machines Dismantled . | . . . Machines Sabotaged . | . . . Overloaded Fab Kills . | . . . Hacking | -11 -10 -10 --------- Run | Yrd Mat Min Machines Accessed 1 | . 1 . Terminals 1 | . 1 . Fabricators . | . . . Repair Stations . | . . . Recycling Units . | . . . Scanalyzers . | . . . Garrison Access . | . . . Total Hacks 4 | . 4 . Successful 2 | . 2 . Failed 2 | . 2 . Catastrophic . | . . . Database Lockouts . | . . . Manual 4 | . 4 . Terminals 4 | . 4 . Fabricators . | . . . Repair Stations . | . . . Recycling Units . | . . . Scanalyzers . | . . . Garrison Access . | . . . Terminal Hacks . | . . . Fabricator Hacks . | . . . Repair Station Hacks . | . . . Recycling Unit Hacks . | . . . Scanalyzer . | . . . Garrison Access Hacks . | . . . Unauthorized Hacks 2 | . 2 . Terminals 2 | . 2 . Botnet 1 | . 1 . Operators 1 | . 1 . Fabricators . | . . . Repair Stations . | . . . Recycling Units . | . . . Scanalyzers . | . . . Garrison Access . | . . . Data Cores Recovered . | . . . Used . | . . . Hacking Detections 1 | . 1 . Full Trace Events . | . . . Feedback Events . | . . . Feedback Blocked . | . . . Robot Schematics Acquired . | . . . Robots Built . | . . . Authchips . | . . . Time . | . . . Total Robot Build Rating . | . . . Part Schematics Acquired . | . . . Parts Built . | . . . Authchips . | . . . Time . | . . . Total Part Build Rating . | . . . Parts Repaired . | . . . Time . | . . . Parts Recycled . | . . . Recycled Matter . | . . . Retrieved Matter . | . . . Retrieved Components . | . . . Parts Scanalyzed . | . . . Part Schematics Acquired . | . . . Parts Damaged . | . . . Bothacking | -11 -10 -10 ------------ Run | Yrd Mat Min Used RIF Installer . | . . . Robots Hacked . | . . . Non-combat . | . . . Combat . | . . . Robot Hacks Applied . | . . . Relay Couplers Released . | . . . Fabnet Peak Effective % . | . . . Robots Rewired . | . . . Allies Hacked . | . . . Hacks Repelled . | . . . Allies | -11 -10 -10 -------- Run | Yrd Mat Min Total Allies 2 | . . 2 Largest Group 2 | . . 2 Highest-Rated Group 38 | . . 38 Highest-Rated Ally 31 | . . 31 Total Orders . | . . . Ally Attacks 8 | . . 8 Total Damage 43 | . . 43 Kills 1 | . . 1 Allies Corrupted . | . . . Allies Melted . | . . . Intel | -11 -10 -10 ------- Run | Yrd Mat Min Robot Analysis Total . | . . . Derelict Logs Recovered 1 | . . 1 Drone Launches . | . . . Drone Recoveries . | . . . Exploration | -11 -10 -10 ------------- Run | Yrd Mat Min Turns Passed 2010 | 69 1409 532 Spaces Moved 890 | 39 609 242 Core 11 | 7 4 . Treads 236 | 32 204 . Legs 643 | . 401 242 Wheels . | . . . Hover . | . . . Flight . | . . . Fastest Speed 50 | 50 150 190 Average Speed 189 | 140 192 190 Slowest Speed 260 | 160 260 190 Overloaded Moves . | . . . Propulsion Burnouts . | . . . Robots Hopped . | . . . Cave-ins Triggered . | . . . Exploration Rate (%) 49 | 3 92 54 Regions Visited 2 Branch Regions 1 Pre-discovered Areas . | . . . Known Exits Taken . | . . . Unknown Exits Taken 2 | 1 1 . Scrap Searched 1 | . . 1 Spaces Dug . | . . . Terrain Destroyed . | . . . Melee . | . . . Projectile . | . . . AOE . | . . . Terrain Rammed . | . . . Walls Destroyed . | . . . Machines Disabled . | . . . Actions | -11 -10 -10 --------- Run | Yrd Mat Min Total 1089 | 46 738 305 Wait 69 | . 13 56 Move 888 | 38 608 242 Hop . | . . . Pick Up 25 | . 25 . Fast Attach 12 | 6 6 . Attach 4 | . 4 . Detach 1 | . 1 . Swap 2 | . 2 . Drop 13 | . 13 . Fire 75 | 2 66 7 Melee . | . . . Ram . | . . . Kick . | . . . Crush . | . . . Escape Stasis . | . . . Rewire . | . . . Trap . | . . . Miscellaneous . | . . . Route ------- -11/Scrapyard -10/Materials (discovered 5 exits: [*Mat x3] / [*Min x2]) -10/Mines (discovered 2 exits: [*Mat x2]) History --------- Turn | Location | Event 32 | -11/Scrapyard | Discovered new exit (range 15) 70 | -11/Scrapyard | Entered Materials 306 | -10/Materials | Build established: Mutant 527 | -10/Materials | Lost 5 parts (1p2n2w) 580 | -10/Materials | Discovered new exit (range 15) 800 | -10/Materials | Discovered new exit (range 8) 1058 | -10/Materials | Core integrity fell below 50% 1249 | -10/Materials | Discovered new exit (range 8) 1378 | -10/Materials | Build established: Scavenger-Mutant 1401 | -10/Materials | Discovered new exit (range 15) 1420 | -10/Materials | Discovered new exit (range 15) 1479 | -10/Materials | Entered Mines 1828 | -10/Mines | Learned Materials security intel 1832 | -10/Mines | Discovered new exit (range 7) 1935 | -10/Mines | Discovered new exit (range 15) 1996 | -10/Mines | Assembled infested the area 2001 | -10/Mines | Assisted by a Guerilla fighting off Assembled 2007 | -10/Mines | Core integrity fell below 20% 2011 | -10/Mines | Destroyed by D-53 Grenadier with Mini Grenade Launcher Last Messages --------------- group of Assembled to figure out where they're coming from, and they're closing on this area, come on!" 02002_ HV Slug penetrates D-53 Grenadier. 02002_ D-53 Grenadier suffers critical hit (Destroy). 02003_ Lgt. Nuclear Core destroyed. 02004_ Aluminum Leg destroyed. 02005_ The unstable cave ceiling collapses. 02006_ HV Slug penetrates D-53 Grenadier. 02006_ D-53 Grenadier suffers critical hit (Destroy). 02006_ D-53 Grenadier destroyed. 02007_ The unstable cave ceiling collapses. 02008_ D-53 Grenadier knocked back. 02009_ The unstable cave ceiling collapses. 02010_ HV Slug penetrates D-53 Grenadier. 02010_ D-53 Grenadier suffers critical hit (Destroy). 02011_ IO-G53(h) destroyed. Map ----- +----------------------------------------------------+ | ???????????????????????????????????# ???## ## | | ???????????????????????????????????# ??# # | | ???????????????????????????????????# ??# """ | | ???????????????????????????????????# ??# """ | | ???????????????????????????????????# ### """ | | ???????????????????????????????????# | | ???????????????????????????????????# ## | | ???????????????????????????????????#### ## ##?# | | ??????????????????????????????????????# #####???# | | ??????????????????????????????????????# #????????# | | ??????????????????????????????????????# #????????? | | ??????????????????????????????????????# #????????? | | ??????????????????????????????????????# #????????? | | ??????????????????????????????????????# #????????? | | ?????????????????????????????????????## #????????? | | ????????????????????????????????????## ##???????? | | ???????????????????????????????????## #???????? | | ????????????????????????????????#### ##??????? | | ??????????????????????????####?## ##?????? | | ?????????????????????##### # ### #?????? | | ????????????????????## ## u #?????? | | ???????????????????## % #?????? | | ???????? ???????# # % % < ##?????? | | ??????? a##### d%;;## ##??????? | | ??????? a ##??####???????? | | ??????????????# @ ##??????????????? | | ??????????????###### #???????????????? | | ???????????????????## #???????????????? | | ????????????????????## #### ##???????????????? | | ?????????????????????#####???####????????????????? | | ?????????????????????????????????????????????????? | | | | | | | | | | | | | | | | | | | | | | | | | | | | | | | | | | | | | | | +----------------------------------------------------+ Best States ------------- Heat Dissipation 39 Energy Generation 14 Energy Capacity 250 Matter Stores 300 Matter Capacity 300 Sight Range 16 Terrain Scan Density 10 Evasion (%) 40 Recoil Reduction 2 Item Schematics ----------------- None Robot Schematics ------------------ None Fabricated ------------ Nothing Alien Tech Used ----------------- None Achievements -------------- None Challenges ------------ None Game ------ Seed FortressMiniBeam Manual? 0 Play Time 00:06:52 Cumulative 456.6 hours Start 2024.04.16 @ 17:57:05 End 2024.04.16 @ 18:02:57 Sessions 1 Manual Loads 0 Difficulty Rogue Special Mode None Game No. 782 Rogue 627 Adventurer 148 Explorer 7 Win Type - Total 21 Types 17/1/2/1/0/0/0/0/0 Lore% 77 Gallery% 89 Achievement% 74 Wizard Run 0 Options --------- Layout 1 ASCII 0 Keyboard 0 Movement Numpad Keybinds 0 Fullscreen 2 Font 24/Smallcaps Map View 50x35 Zoom Use 0% Tactical HUD 1 Map Filters NONE Filters NONE Steam 1 RUN: 5c79a0be-fcae-4ef3-9226-2da6a52bc2d2